bitfinex/quotes_ETHUSD_20240927
["timestamp","ask_amount","ask_price","bid_price","bid_amount"]
[1727457372736,7.35961,2717.6,2717.1,4.51375083]
[1727457372953,3.67979,2717.6,2717.1,4.51375083]
[1727457373643,3.67979,2717.6,2717.2,3.68023]
[1727457373841,6.67955,2717.8,2717.2,8.05400106]
[1727457374001,3.0,2717.6,2717.2,7.23452798]
[1727457374203,3.67973,2717.6,2717.2,7.23452798]
[1727457374399,3.67959,2717.7,2717.2,10.91470798]
[1727457374945,3.0,2717.6,2717.2,7.23452798]
[1727457375244,3.0,2717.6,2717.2,8.40935886]
[1727457375545,3.0,2717.6,2717.2,3.55436798]
[1727457375705,3.67995,2717.5,2717.2,3.55436798]
[1727457376105,6.67978,2717.6,2717.2,3.55436798]
[1727457376339,3.67992,2717.5,2717.2,3.55436798]
[1727457376645,7.35987,2717.5,2717.0,3.68051]
[1727457376937,3.67992,2717.5,2717.0,4.7720528]
[1727457377129,4.47705,2717.4,2717.0,1.0915428]
[1727457378250,0.797,2717.4,2717.1,0.06090018]
[1727457379046,3.68018,2717.3,2717.1,0.06090018]
[1727457379244,3.68018,2717.3,2716.9,3.55436798]
[1727457379549,3.68018,2717.3,2717.0,0.0609572]
[1727457380542,4.477,2717.4,2717.0,3.7414672]
[1727457380847,3.68018,2717.3,2717.0,0.0609572]
[1727457381026,3.68039,2717.1,2717.0,0.0609572]
[1727457381238,3.68039,2717.1,2716.6,3.55436798]
[1727457381548,3.68093,2716.7,2716.0,14.58613798]
[1727457381751,3.68093,2716.7,2716.1,3.68173]
[1727457382309,3.68115,2716.6,2716.1,3.68173]
[1727457382505,3.68115,2716.6,2716.2,1.0917908]
[1727457382710,3.68121,2716.5,2716.2,1.0917908]
[1727457382931,3.68121,2716.5,2716.0,10.91798798]
[1727457383150,3.68121,2716.5,2716.0,7.23616798]
[1727457383327,7.36252,2716.5,2716.0,7.23616798]
[1727457383649,7.36252,2716.5,2716.0,8.32799278]
[1727457383650,3.68121,2716.5,2716.0,8.32799278]
[1727457383833,3.68121,2716.5,2716.1,3.6817]
[1727457384037,4.46032,2716.9,2716.3,3.55436798]
[1727457384227,3.68081,2716.8,2716.3,7.23576798]
[1727457384421,4.46032,2716.9,2716.4,3.68122]
[1727457384422,8.14108,2716.9,2716.4,3.68122]
[1727457384628,3.68083,2716.8,2716.3,7.23576798]
[1727457384947,0.7796,2716.9,2716.5,3.68113]
[1727457385114,7.46029,2716.9,2716.4,3.68133]
[1727457385924,7.46029,2716.9,2716.3,4.72939071]
[1727457386242,3.6809,2716.8,2716.3,7.23581798]
[1727457386640,3.68014,2717.3,2715.2,13.77737582]
[1727457386641,3.6817,2716.2,2715.7,7.23657798]
[1727457386963,4.49937,2716.1,2715.7,3.55436798]
[1727457387122,4.55590788,2716.1,2715.6,3.68241]
[1727457387327,3.68197,2716.0,2715.6,0.73093263]
[1727457387524,3.68203,2715.9,2715.6,0.73093263]
[1727457388058,3.68203,2715.9,2715.4,7.23705798]
[1727457389526,3.68203,2715.9,2715.5,3.68254]
[1727457390359,3.68203,2715.9,2715.4,7.23703798]
[1727457390545,3.68203,2715.9,2715.4,9.06401978]
[1727457393345,3.68203,2715.9,2715.5,3.73707514]
[1727457393748,3.68189,2716.0,2715.5,7.41951514]
[1727457394331,3.68189,2716.0,2715.5,3.73696514]
[1727457395028,3.68189,2716.0,2715.5,7.41945514]
[1727457395228,3.68189,2716.0,2715.5,7.41944514]
[1727457395788,3.68189,2716.0,2715.6,3.68242]
[1727457396261,0.7636,2716.6,2715.8,3.55436798]
[1727457396461,6.68136,2716.4,2715.9,3.68193]
[1727457396758,7.425856,2716.4,2716.0,0.05428084]
[1727457397529,7.425856,2716.4,2716.0,3.73615084]
[1727457397863,6.68136,2716.4,2716.0,0.05428084]
[1727457400151,0.7843,2716.3,2716.0,0.05428084]
[1727457401712,3.68174,2716.1,2716.0,0.05428084]
[1727457401996,8.04187788,2716.1,2716.0,0.05428084]
[1727457402204,0.7594,2715.4,2715.0,3.68321]
[1727457402359,0.7594,2715.4,2714.8,3.68349]
[1727457402687,4.44217,2715.4,2714.8,7.36687]
[1727457402846,3.68283,2715.3,2714.9,0.05458615]
[1727457403051,7.36578,2715.3,2714.9,0.05458615]
[1727457403375,10.23653798,2715.8,2715.1,3.6831]
[1727457403376,6.68226,2715.8,2715.1,3.6831]
[1727457403684,3.68237,2715.7,2715.1,3.68302]
[1727457403981,3.68237,2715.7,2715.2,3.68294]
[1727457404183,3.68244,2715.6,2715.1,3.68302]
[1727457404396,3.68244,2715.6,2715.2,3.68292]
[1727457405173,6.68226,2715.8,2715.2,3.68292]
[1727457405387,6.68226,2715.8,2715.2,7.23728798]
[1727457405865,7.47666,2715.8,2715.2,7.23728798]
[1727457406291,7.47666,2715.8,2715.3,3.68282]
[1727457406494,3.68229,2715.7,2715.3,3.68282]
[1727457408480,3.68229,2715.7,2715.1,7.36607]
[1727457408678,3.68229,2715.7,2715.1,8.12535948]
[1727457408897,3.68229,2715.7,2715.1,0.75928948]
[1727457409057,3.68243,2715.6,2715.1,0.75928948]
[1727457409257,3.68243,2715.6,2715.1,4.44237948]
[1727457409794,3.6826,2715.5,2715.1,0.75928948]
[1727457410847,3.6826,2715.5,2714.3,3.68416]
[1727457410848,3.68337,2714.9,2714.2,7.35]
[1727457410960,3.68337,2714.9,2714.3,3.68418]
[1727457411159,0.7684,2714.8,2714.3,3.68418]
[1727457411360,0.7684,2714.8,2714.4,4.4078148]
[1727457412004,0.7684,2714.8,2714.5,3.68384]
[1727457412495,0.7684,2714.8,2714.0,7.33708278]
[1727457412496,3.68379,2714.6,2714.0,7.33708278]
[1727457412699,0.7684,2714.8,2714.0,7.33708278]
[1727457412700,3.68392,2714.5,2714.0,3.7827148]
[1727457412899,3.68392,2714.5,2714.0,5.25142308]
[1727457413062,0.7684,2714.4,2714.0,5.25142308]
[1727457414203,0.7684,2714.4,2714.1,3.68443]
[1727457414872,0.7684,2714.4,2714.0,8.80579106]
[1727457415102,4.45248,2714.4,2714.0,7.33708278]
[1727457416069,4.45248,2714.4,2714.0,0.0982248]
[1727457416310,3.6842,2714.3,2714.0,0.0982248]
[1727457416600,3.68434,2714.2,2714.0,0.0982248]
[1727457416767,4.498128,2714.2,2714.1,0.06068744]
[1727457417466,5.252728,2714.2,2714.1,0.06068744]
[1727457417695,6.68446,2714.1,2714.0,0.0982248]
[1727457417899,9.0011998,2714.1,2714.0,0.0982248]
[1727457420386,9.5511998,2714.1,2714.0,0.0982248]
[1727457422231,13.10556778,2714.1,2714.0,0.0982248]
[1727457422895,13.10556778,2714.1,2712.8,10.92743166]
[1727457422896,4.46062,2713.1,2712.8,0.00080368]
[1727457423084,0.7747,2713.1,2712.8,0.00080368]
[1727457423280,3.68609,2712.9,2712.8,0.00080368]
[1727457425730,4.49549,2712.9,2712.8,0.00080368]
[1727457427413,5.04549,2712.9,2712.8,0.00080368]
[1727457427628,5.918647,2712.9,2712.8,0.00080368]
[1727457428126,8.918647,2712.9,2712.8,0.00080368]
[1727457428287,3.68692,2712.3,2711.3,0.13203]
[1727457428489,3.0,2712.8,2711.8,7.37501]
[1727457428490,1.178092,2712.2,2711.8,7.37501]
[1727457428732,7.37347,2712.5,2711.8,7.37501]
[1727457428733,6.68684,2712.4,2711.8,3.68749]
[1727457429085,3.68698,2712.3,2711.8,3.68749]
[1727457429485,3.68705,2712.2,2711.6,10.92990798]
[1727457429790,7.37421,2712.2,2711.6,7.24213798]
[1727457430027,0.7775,2712.0,2711.4,3.68804]
[1727457430328,3.68768,2711.8,2711.3,3.82029]
[1727457430529,3.68767,2711.8,2711.3,0.13203]
[1727457431123,3.68813,2711.4,2711.3,0.13203]
[1727457431528,3.74466788,2711.4,2711.3,0.13203]
[1727457432329,3.68813,2711.4,2711.3,0.13203]
[1727457432544,4.46549,2711.5,2711.3,0.13203]
[1727457433092,3.68813,2711.4,2711.3,0.13203]
[1727457433291,7.503492,2711.4,2711.3,0.13203]
[1727457433602,8.271692,2711.4,2711.3,0.13203]
[1727457435736,8.821692,2711.4,2711.3,0.13203]
[1727457435895,0.7682,2711.8,2711.3,3.82021]
[1727457436095,0.7682,2711.8,2711.4,3.68812]
[1727457436333,7.37456,2712.1,2711.3,3.82025]
[1727457436502,4.056076,2712.0,2711.5,3.68798]
[1727457436701,0.368726,2712.0,2711.3,0.13203]
[1727457436902,0.7682,2712.2,2711.3,0.13203]
[1727457436903,3.68753,2711.9,2711.3,3.82021]
[1727457437308,3.68752,2711.9,2711.3,3.82026]
[1727457437509,3.68744,2712.0,2711.3,0.13203]
[1727457437711,3.68766,2711.8,2711.3,0.13203]
[1727457438249,0.368744,2711.9,2711.3,0.13203]
[1727457438438,0.368744,2711.9,2711.4,3.68804]
[1727457438640,3.68759,2711.8,2711.3,0.13203]
[1727457438947,4.0932044,2711.8,2711.3,0.13203]
[1727457439158,4.0932044,2711.8,2711.3,3.82029]
[1727457439390,0.7682,2711.7,2711.3,0.13203]
[1727457439516,3.68787,2711.6,2711.3,0.13203]
[1727457439715,3.68813,2711.4,2711.3,0.13203]
[1727457442158,0.445607,2711.5,2711.3,0.13203]
[1727457442533,4.133617,2711.5,2711.3,0.13203]
[1727457443421,0.445607,2711.5,2711.3,0.13203]
[1727457443615,0.7682,2711.7,2711.3,0.13203]
[1727457443935,3.0,2711.6,2711.3,0.13203]
[1727457444276,6.68796,2711.6,2711.3,0.13203]
[1727457444585,3.68813,2711.4,2711.3,0.13203]
[1727457444754,7.46083,2711.4,2711.3,0.13203]
[1727457444957,9.425713,2711.4,2711.3,0.13203]
[1727457448650,8.875713,2711.4,2711.3,0.13203]
[1727457448954,6.68813,2711.4,2711.3,0.13203]
[1727457449768,6.68813,2711.4,2711.3,0.16666052]
[1727457449966,3.0,2711.4,2711.3,0.16666052]
[1727457450175,3.0,2711.6,2711.3,0.13203]
[1727457450343,3.0,2711.6,2711.3,0.16666052]
[1727457450547,3.68801,2711.5,2711.3,0.16666052]
[1727457450873,6.68788,2711.6,2711.3,0.16666052]
[1727457451041,6.6879,2711.6,2711.3,0.16666052]
[1727457451249,3.68801,2711.5,2711.3,0.16666052]
[1727457451462,3.0,2711.6,2711.3,0.16666052]
[1727457451863,0.7783,2712.0,2711.3,4.60917857]
[1727457452036,3.68753,2711.9,2711.4,3.68812]
[1727457452243,3.6876,2711.8,2711.4,3.68812]
[1727457452440,3.6876,2711.8,2711.5,0.03439476]
[1727457452681,3.6876,2711.8,2711.3,3.82028]
[1727457452883,3.68745,2711.9,2711.4,3.72250712]
[1727457453400,3.68745,2711.9,2711.4,0.03439712]
[1727457454744,9.839611,2712.5,2711.6,3.68777]
[1727457454745,4.945951,2712.5,2711.6,3.68777]
[1727457454943,5.68581,2713.2,2712.2,3.68696]
[1727457454944,3.68642,2712.7,2712.2,3.68696]
[1727457455177,3.68584,2713.1,2712.5,3.68655]
[1727457455482,3.68584,2713.1,2712.6,0.03616586]
[1727457455935,3.68584,2713.1,2712.5,3.68655]
[1727457456091,7.37204,2713.0,2712.5,3.68655]
[1727457456383,3.0,2712.9,2712.6,0.03616586]
[1727457456883,3.68577,2713.2,2712.6,0.03616586]
[1727457457042,3.68584,2713.1,2712.6,0.03616586]
[1727457457449,3.68609,2712.9,2712.6,0.03616586]
[1727457457649,1.2167811,2713.3,2712.3,7.25475167]
[1727457457650,3.68606,2713.0,2712.3,7.25472167]
[1727457457858,3.68606,2713.0,2712.4,3.68668]
[1727457458079,3.68606,2713.0,2712.4,3.72291125]
[1727457459280,7.37211,2713.0,2712.4,0.03623125]
[1727457459486,7.37211,2713.0,2712.4,3.72299125]
[1727457459704,4.423261,2713.0,2712.4,3.72299125]
[1727457459867,3.68603,2713.0,2712.4,3.72299125]
[1727457460067,3.68603,2713.0,2712.5,3.68662]
[1727457460379,3.68603,2713.0,2712.6,0.03616586]
[1727457460701,7.37209,2713.0,2712.6,0.03616586]
[1727457460906,3.68603,2713.0,2712.6,0.03616586]
[1727457461388,7.37208,2713.0,2712.6,0.03616586]
[1727457461787,3.68603,2713.0,2712.3,3.68678]
[1727457461986,7.37206,2713.0,2712.7,0.03613318]
[1727457462200,7.37206,2713.0,2712.3,3.68678]
[1727457462402,3.68617,2712.9,2712.8,0.03610049]
[1727457462596,7.37239,2712.9,2712.1,8.07781032]
[1727457462801,7.37235,2712.9,2712.2,3.68703]
[1727457462999,3.68617,2712.9,2712.2,3.74761372]
[1727457463189,7.37239,2712.9,2712.2,3.74761372]
[1727457463389,3.68617,2712.9,2712.2,3.74761372]
[1727457463598,3.68625,2712.8,2712.2,0.06058372]
[1727457463816,3.68625,2712.8,2712.2,3.74761372]
[1727457464802,3.68617,2712.9,2712.2,0.06058372]
[1727457465118,3.68617,2712.9,2712.3,3.68687]
[1727457465425,3.68617,2712.9,2712.4,0.06046928]
[1727457465584,7.37236,2712.9,2712.4,0.06046928]
[1727457465784,3.68632,2712.8,2712.4,0.06046928]
[1727457466106,3.68632,2712.8,2712.1,8.07788032]
[1727457466309,3.68643,2712.7,2712.2,0.06058372]
[1727457466476,7.37289,2712.7,2712.2,0.06058372]
[1727457466681,3.68643,2712.7,2712.2,0.06058372]
[1727457467113,4.055143,2712.6,2712.2,0.06058372]
[1727457467320,3.6867,2712.5,2711.9,3.68737]
[1727457467503,3.6867,2712.5,2712.0,0.06069818]
[1727457467691,3.6865,2712.6,2712.0,3.74793818]
[1727457468606,4.423775,2712.6,2712.0,3.74793818]
[1727457468812,3.68669,2712.5,2712.0,0.06069818]
[1727457469105,4.423775,2712.6,2712.0,3.74788818]
[1727457469797,8.110395,2712.6,2712.0,0.06069818]
[1727457469995,0.8110395,2712.5,2712.0,3.74793818]
[1727457470289,7.37257,2712.8,2712.1,3.68716]
[1727457470495,3.68669,2712.5,2712.2,0.06058372]
[1727457470799,3.68669,2712.5,2711.9,3.68737]
[1727457470992,3.68669,2712.5,2712.3,0.0605265]
[1727457471192,3.68669,2712.5,2711.9,3.68737]
[1727457471428,3.68691,2712.3,2711.7,7.37527]
[1727457471743,3.68691,2712.3,2711.6,3.68776]
[1727457472285,3.68691,2712.3,2711.7,3.68766]
[1727457472485,3.68706,2712.2,2711.5,3.68793]
[1727457472826,0.4055579,2712.3,2711.4,8.07875032]
[1727457472827,3.68723,2712.1,2711.6,3.68785]
[1727457473583,4.49887,2712.4,2711.6,3.68785]
[1727457473783,3.68705,2712.2,2711.6,3.68785]
[1727457474081,3.68726,2712.1,2711.4,8.07873032]
[1727457474479,3.68726,2712.1,2711.5,3.68798]
[1727457474744,3.68705,2712.2,2711.5,3.68798]
[1727457474953,3.68715,2712.2,2711.3,7.48203]
[1727457475251,3.68718,2712.1,2711.5,3.68792]
[1727457475631,3.68734,2712.0,2711.4,3.68813]
[1727457476846,4.055898,2712.1,2711.3,0.13203]
[1727457476847,3.68763,2711.8,2711.3,0.13203]
[1727457477152,3.68765,2711.8,2711.3,0.13203]
[1727457477657,3.68691,2712.3,2711.7,3.68765]
[1727457477942,0.812,2712.4,2711.6,3.68784]
[1727457477943,4.49878,2712.4,2711.8,3.68756]
[1727457478151,3.68691,2712.3,2711.6,7.37557]
[1727457478314,3.68691,2712.3,2711.7,3.56935854]
[1727457479147,5.617319,2712.4,2711.3,3.70138854]
[1727457479148,1.930539,2712.4,2711.3,3.70138854]
[1727457479357,3.68756,2711.9,2711.3,3.70138854]
[1727457479769,7.37511,2711.9,2711.3,3.70138854]
[1727457480249,3.68759,2711.8,2711.3,3.70138854]
[1727457480421,4.47415,2711.9,2711.4,3.68811]
[1727457480620,5.290293,2711.9,2711.4,3.68811]
[1727457481239,3.68759,2711.8,2711.3,3.70138854]
[1727457481437,3.68792,2711.6,2711.3,3.70138854]
[1727457481640,1.602843,2711.9,2711.3,0.13203]
[1727457481641,3.68813,2711.4,2711.3,0.13203]
[1727457483142,4.47483,2711.4,2711.3,0.13203]
[1727457485183,4.53136788,2711.4,2711.3,0.13203]
[1727457485386,7.47483,2711.4,2711.3,0.13203]
[1727457485844,8.02483,2711.4,2711.3,0.13203]
[1727457486044,0.7801,2710.3,2710.0,25.55]
[1727457486265,3.68937,2710.5,2710.0,18.2411]
[1727457486439,3.68951,2710.4,2710.0,18.2411]
[1727457486780,0.7801,2710.6,2710.1,3.68989]
[1727457486939,0.7801,2710.6,2710.0,21.81045854]
[1727457487138,3.68937,2710.5,2710.0,21.81045854]
[1727457487745,3.68953,2710.4,2710.0,18.2411]
[1727457488988,3.68937,2710.5,2710.0,18.2411]
[1727457488989,3.68964,2710.3,2710.0,18.2411]
[1727457489576,3.68964,2710.3,2710.0,18.2]
[1727457490003,3.68937,2710.5,2710.0,18.2]
[1727457490584,3.68963,2710.3,2710.0,18.2]
[1727457491059,3.68955,2710.4,2710.0,18.2]
[1727457491259,3.68937,2710.5,2710.0,18.2]
[1727457491260,3.68964,2710.3,2710.0,18.2]
[1727457492191,3.68937,2710.5,2710.0,18.2]
[1727457492695,0.8184,2710.9,2710.3,3.56935854]
[1727457492851,0.8184,2710.9,2710.3,7.25885854]
[1727457492852,4.50722,2710.9,2710.3,7.25885854]
[1727457493057,14.76694792,2711.7,2710.0,18.2]
[1727457493058,0.7971,2712.4,2711.0,0.0411]
[1727457493254,3.68739,2712.0,2711.4,0.0411]
[1727457493557,0.368739,2711.9,2711.4,0.0411]
[1727457493893,0.7971,2712.4,2711.6,3.56935854]
[1727457494077,0.7971,2712.4,2711.7,3.68765]
[1727457494395,3.68652,2712.6,2711.8,3.68755]
[1727457494690,0.368652,2712.5,2711.8,3.68755]
[1727457495106,0.368652,2712.5,2711.9,3.68741]
[1727457495305,7.37266,2712.8,2712.0,0.0411]
[1727457495796,0.8271,2713.0,2712.2,7.25636854]
[1727457496006,0.451285,2713.0,2712.4,3.68676]
[1727457496310,0.813,2713.3,2712.6,3.68648]
[1727457496598,4.49854,2713.3,2712.6,3.68648]
[1727457496892,4.49854,2713.3,2712.0,0.0411]
[1727457496893,0.818398,2713.2,2712.0,0.0411]
[1727457497098,3.68609,2712.9,2712.1,3.68708]
[1727457497397,0.368609,2712.8,2712.1,3.68708]
[1727457497607,0.368609,2712.8,2712.1,7.37416]
[1727457497762,0.368609,2712.8,2712.2,3.68702]
[1727457498089,0.368609,2712.8,2712.3,3.68688]
[1727457498269,3.68609,2712.9,2712.3,3.68688]
[1727457499292,3.68591,2713.1,2712.4,3.68666]
[1727457499606,3.68584,2713.1,2712.3,3.68688]
[1727457499769,7.37237,2712.9,2712.3,3.68688]
[1727457499959,3.68618,2712.9,2712.3,3.68688]
[1727457500367,3.68617,2712.9,2712.3,3.68688]
[1727457501001,3.68617,2712.9,2712.4,3.68674]
[1727457501579,3.68617,2712.9,2712.3,3.68688]
[1727457501766,4.423378,2712.9,2712.3,3.68688]
[1727457501964,3.68561,2713.3,2712.6,3.68641]
[1727457502681,3.6859,2713.1,2712.4,7.41444]
[1727457503002,0.36859,2713.0,2712.5,3.6866]
[1727457503168,3.6859,2713.1,2712.4,3.72776]
[1727457503370,3.6857,2713.2,2712.6,3.68641]
[1727457503574,3.68545,2713.4,2712.8,3.68615]
[1727457503773,3.68545,2713.4,2712.8,7.37229]
[1727457503985,3.68545,2713.4,2712.8,3.68614]
[1727457504186,3.68558,2713.3,2712.7,3.68628]
[1727457504388,3.68575,2713.2,2712.6,3.68649]
[1727457505307,0.7873,2713.7,2713.0,0.0411]
[1727457505616,0.7873,2713.7,2713.0,3.72703]
[1727457505617,3.68524,2713.6,2713.0,3.72703]
[1727457505819,0.447254,2713.5,2713.0,3.72703]
[1727457506179,0.447254,2713.5,2713.1,3.68578]
[1727457506400,0.447254,2713.5,2713.0,3.72703]
[1727457506617,3.68548,2713.4,2713.0,0.0411]
[1727457506811,0.4132734,2713.3,2712.9,3.68607]
[1727457507013,3.68493,2713.8,2712.7,3.72743]
[1727457507175,0.7533,2714.2,2712.4,11.03671]
[1727457507176,4.43771,2714.2,2713.3,3.68546]
[1727457507379,3.0,2713.9,2713.4,3.68536]
[1727457508115,3.68466,2714.0,2713.1,0.0411]
[1727457508116,3.68466,2714.0,2713.5,3.68526]
[1727457508293,3.68466,2714.0,2713.5,3.68519]
[1727457508495,3.68484,2713.9,2713.3,3.68546]
[1727457508701,4.8412701,2714.0,2713.3,3.68546]
[1727457509003,7.36933,2714.0,2713.4,3.68537]
[1727457509203,3.68466,2714.0,2713.3,3.68546]
[1727457509402,3.68478,2713.9,2713.3,3.68546]
[1727457510023,3.68478,2713.9,2713.1,3.72682]
[1727457510024,3.68502,2713.7,2713.1,3.72682]
[1727457510216,3.68535,2713.5,2713.1,0.0411]
[1727457510589,3.68548,2713.4,2712.8,0.0411]
[1727457510991,3.6857,2713.2,2712.8,0.0411]
[1727457511203,3.6857,2713.2,2712.7,3.68627]
[1727457511389,3.6857,2713.2,2712.6,4.39022761]
[1727457511603,3.68582,2713.1,2712.6,4.39022761]
[1727457511811,3.68582,2713.1,2712.6,8.07671761]
[1727457512010,3.68611,2712.9,2712.5,0.0411]
[1727457512218,3.68596,2713.0,2712.5,0.0411]
[1727457512424,0.737152,2713.1,2712.5,0.0411]
[1727457512425,3.68627,2712.8,2712.5,0.0411]
[1727457512729,3.68512,2713.7,2712.4,3.68667]
[1727457512730,3.68603,2713.0,2712.4,3.68667]
[1727457512929,3.0,2713.3,2712.7,3.68628]
[1727457513136,3.6859,2713.1,2712.5,3.68661]
[1727457513816,3.68573,2713.2,2712.5,3.68661]
[1727457513817,3.68597,2713.0,2712.5,3.68661]
[1727457515106,7.37149,2713.2,2712.6,3.68641]
[1727457515423,3.68583,2713.1,2712.6,3.76013007]
[1727457515632,3.68596,2713.0,2712.3,3.72791]
[1727457516141,3.68657,2712.6,2712.3,0.0411]
[1727457516347,3.68657,2712.6,2712.2,3.56810704]
[1727457516511,7.37318,2712.6,2712.2,3.56810704]
[1727457516700,3.68672,2712.5,2712.2,3.56810704]
[1727457517402,3.68678,2712.4,2712.2,3.56810704]
[1727457517603,3.68663,2712.5,2712.2,3.56810704]
[1727457517817,3.68655,2712.6,2712.2,3.56810704]
[1727457518312,4.48175,2713.1,2712.2,3.56810704]
[1727457518913,3.68659,2712.6,2712.2,3.56810704]
[1727457519426,3.68673,2712.5,2712.2,3.56810704]
[1727457520049,4.51143,2712.5,2711.9,7.25542704]
[1727457520221,0.8247,2712.5,2711.9,3.56810704]
[1727457520412,7.37398,2712.3,2711.9,3.56810704]
[1727457520746,7.37397,2712.3,2711.9,3.56810704]
[1727457520946,3.68698,2712.3,2711.9,3.56810704]
[1727457521252,3.68708,2712.2,2711.9,3.56810704]
[1727457523522,3.68698,2712.3,2711.9,3.56810704]
[1727457523852,3.68724,2712.1,2711.9,3.56810704]
[1727457525151,3.68731,2712.0,2711.6,3.56810704]
[1727457525354,0.451168,2712.3,2711.2,3.56810704]
[1727457525355,3.6876,2711.8,2711.2,3.56810704]
[1727457525525,3.68781,2711.7,2711.2,7.25643704]
[1727457525941,3.68786,2711.6,2711.2,7.25643704]
[1727457526145,3.6876,2711.8,2711.2,7.25643704]
[1727457526334,3.6876,2711.8,2711.3,3.68825]
[1727457526650,3.68773,2711.7,2711.3,3.68825]
[1727457527260,3.68773,2711.7,2711.2,7.25650704]
[1727457528158,3.68793,2711.6,2711.2,3.56810704]
[1727457528328,3.68822,2711.4,2710.9,7.25684704]
[1727457528517,3.68834,2711.3,2710.9,3.56810704]
[1727457529433,3.68822,2711.4,2710.9,3.56810704]
[1727457529434,7.37647,2711.4,2710.9,7.25684704]
[1727457529744,3.68828,2711.3,2710.9,3.56810704]
[1727457529953,8.911097,2711.4,2710.9,7.25688704]
[1727457530254,8.17345,2711.4,2710.9,7.25688704]
[1727457530419,3.68831,2711.3,2710.9,3.56810704]
[1727457530818,4.48522,2711.4,2710.9,3.56810704]
[1727457531018,3.68822,2711.4,2710.9,7.30294362]
[1727457531257,3.68822,2711.4,2710.9,7.33064329]
[1727457531641,7.37644,2711.4,2710.9,3.64187329]
[1727457531846,7.37644,2711.4,2710.9,3.56810704]
[1727457532559,3.68829,2711.3,2710.9,3.56810704]
[1727457533472,3.68847,2711.2,2710.9,3.56810704]
[1727457533840,3.6886,2711.1,2710.9,3.56810704]
[1727457534152,3.6886,2711.1,2710.6,7.25721704]
[1727457534561,3.68881,2710.9,2710.6,3.56810704]
[1727457535066,7.37774,2710.9,2710.6,3.56810704]
[1727457535522,1.18406,2711.1,2710.1,7.25796704]
[1727457535523,3.68928,2710.6,2710.1,7.25796704]
[1727457535725,3.68916,2710.7,2710.2,3.68973]
[1727457536162,3.68916,2710.7,2710.3,3.56810704]
[1727457536329,3.68928,2710.6,2710.3,3.56810704]
[1727457536529,3.68916,2710.7,2710.3,3.56810704]
[1727457536730,3.68928,2710.6,2710.3,3.58806695]
[1727457536929,3.68928,2710.6,2710.3,3.56810704]
[1727457537368,3.68916,2710.7,2710.5,3.56810704]
[1727457537725,3.68922,2710.6,2710.3,3.56810704]
[1727457537933,3.68916,2710.7,2710.3,3.56810704]
[1727457538144,3.68916,2710.7,2710.1,3.68981]
[1727457538145,3.68955,2710.4,2710.1,3.56810704]
[1727457538660,0.8196,2710.5,2710.0,18.2]
[1727457538960,3.68949,2710.4,2710.1,3.56810704]
[1727457539335,3.68965,2710.3,2710.1,3.56810704]
[1727457540268,3.68983,2710.2,2710.0,18.2]
[1727457540827,4.5215,2710.1,2710.0,18.2]
[1727457541070,3.6899,2710.1,2710.0,18.2]
[1727457541932,7.830081,2710.4,2710.0,18.2]
[1727457542170,3.68974,2710.3,2710.0,18.2]
[1727457542587,3.68976,2710.2,2710.0,18.2]
[1727457542775,3.68956,2710.4,2710.0,21.89]
[1727457542972,3.68956,2710.4,2710.0,18.2]
[1727457543286,3.68956,2710.4,2710.0,21.89002]
[1727457543646,3.68905,2710.8,2710.1,3.56810704]
[1727457543875,3.68905,2710.8,2710.3,7.25772704]
[1727457544074,3.68912,2710.7,2710.3,3.56810704]
[1727457544986,3.68905,2710.8,2710.3,7.25772704]
[1727457545163,7.3781,2710.8,2710.3,7.25772704]
[1727457545358,3.68905,2710.8,2710.4,3.68948]
[1727457545574,7.37881,2710.5,2710.3,1.0947407]
[1727457545782,3.6895,2710.4,2710.0,21.76810704]
[1727457545959,3.68937,2710.5,2710.0,21.76810704]
[1727457546285,3.68898,2710.8,2710.3,3.56810704]
[1727457546477,3.68936,2710.5,2710.3,3.56810704]
[1727457546658,3.68936,2710.5,2710.0,21.76810704]
[1727457546659,3.6896,2710.4,2710.0,21.76810704]
[1727457546865,3.6897,2710.3,2710.0,21.76810704]
[1727457547163,3.6895,2710.4,2710.0,21.76810704]
[1727457547361,3.68963,2710.3,2710.1,0.05060543]
[1727457547559,3.68963,2710.3,2710.0,21.76810704]
[1727457547560,1.215869,2710.9,2710.0,18.2]
[1727457547767,3.6899,2710.1,2710.0,18.2]
[1727457551314,3.68977,2710.2,2710.0,18.2]
[1727457552905,7.37966,2710.2,2710.0,18.2]
[1727457553219,3.68977,2710.2,2710.0,18.2]
[1727457553425,3.68902,2710.8,2710.2,3.68968]
[1727457553575,3.68902,2710.8,2710.1,3.68989]
[1727457553777,3.68902,2710.8,2710.2,3.68975]
[1727457553778,3.68908,2710.7,2710.2,3.68975]
[1727457553971,3.68943,2710.5,2710.1,0.8482308]
[1727457554202,7.37887,2710.5,2710.0,21.76810704]
[1727457554417,3.68943,2710.5,2710.0,21.76810704]
[1727457554589,0.7688,2711.1,2710.0,25.45807704]
[1727457554778,0.7688,2711.1,2710.2,3.68965]
[1727457554779,3.68908,2710.7,2710.2,3.68965]
[1727457555417,0.7688,2711.1,2710.0,25.45807704]
[1727457555418,3.68945,2710.5,2710.0,25.45807704]
[1727457555907,7.37889,2710.5,2710.0,25.45807704]
[1727457556123,3.68944,2710.5,2710.0,25.45807704]
[1727457556421,7.37834,2710.7,2710.0,25.45804704]
[1727457556588,3.68925,2710.6,2710.1,3.68982]
[1727457557722,3.68937,2710.5,2710.0,25.45804704]
[1727457558319,3.68906,2710.8,2710.2,3.68969]
[1727457558631,3.68906,2710.8,2710.3,3.56810704]
[1727457558792,3.68922,2710.6,2710.0,21.76810704]
[1727457559003,3.68949,2710.4,2710.0,21.76810704]
[1727457559391,3.68964,2710.3,2710.0,18.2]
[1727457559818,4.057866,2710.8,2710.0,21.76810704]